[Event "NJSK 2024 AmBm"]
[Site "Groningen, Netherlands"]
[Date "2024.06.02"]
[Round "6.6"]
[White "Oostinga, Elisa"]
[Black "Woldhuis, Thera"]
[Result "1-0"]
[TimeControl "90min/40moves + 30min + 30sec/move"]
[WhiteElo "1713"]
[BlackElo "1662"]

1. e4 {[%clk 01:30:57]} {[%emt 00:00:02]} e5 {[%clk 01:30:58]} {[%emt
00:00:03]} 2. Nf3 {[%clk 01:31:14]} {[%emt 00:00:12]} Nc6 {[%clk 01:31:26]}
{[%emt 00:00:03]} 3. d4 {[%clk 01:31:33]} {[%emt 00:00:11]} exd4 {[%clk
01:31:48]} {[%emt 00:00:09]} 4. Nxd4 {[%clk 01:31:53]} {[%emt 00:00:09]} Bc5
{[%clk 01:32:01]} {[%emt 00:00:18]} 5. Be3 {[%clk 01:32:11]} {[%emt 00:00:11]}
Bb6 {[%clk 01:32:27]} {[%emt 00:00:05]} 6. Bc4 {[%clk 01:31:11]} {[%emt
00:01:29]} Nge7 {[%clk 01:32:44]} {[%emt 00:00:13]} 7. Nc3 {[%clk 01:30:44]}
{[%emt 00:00:56]} O-O {[%clk 01:33:00]} {[%emt 00:00:15]} 8. O-O {[%clk
01:30:44]} {[%emt 00:00:29]} d6 {[%clk 01:33:28]} {[%emt 00:00:03]} 9. h3
{[%clk 01:26:58]} {[%emt 00:04:16]} Re8 {[%clk 01:31:23]} {[%emt 00:02:35]} 10.
Qd2 {[%clk 01:22:34]} {[%emt 00:04:53]} Ne5 {[%clk 01:29:47]} {[%emt 00:02:07]}
11. Be2 {[%clk 01:18:14]} {[%emt 00:04:49]} d5 {[%clk 01:29:00]} {[%emt
00:01:18]} 12. f4 {[%clk 00:51:08]} {[%emt 00:27:36]} Nc4 {[%clk 01:27:39]}
{[%emt 00:01:52]} 13. Bxc4 {[%clk 00:46:46]} {[%emt 00:04:51]} dxc4 {[%clk
01:28:01]} {[%emt 00:00:09]} 14. Rad1 {[%clk 00:45:44]} {[%emt 00:01:31]} Nc6
{[%clk 01:22:55]} {[%emt 00:05:37]} 15. Rfe1 {[%clk 00:38:45]} {[%emt
00:07:28]} Nxd4 {[%clk 01:17:52]} {[%emt 00:05:33]} 16. Bxd4 {[%clk 00:39:02]}
{[%emt 00:00:12]} Bxd4+ {[%clk 01:17:18]} {[%emt 00:01:05]} 17. Qxd4 {[%clk
00:39:16]} {[%emt 00:00:16]} Qxd4+ {[%clk 01:17:24]} {[%emt 00:00:24]} 18. Rxd4
{[%clk 00:39:39]} {[%emt 00:00:07]} Be6 {[%clk 01:17:52]} {[%emt 00:00:03]} 19.
Red1 {[%clk 00:34:19]} {[%emt 00:05:49]} f5 {[%clk 01:17:12]} {[%emt 00:01:10]}
20. Nb5 {[%clk 00:30:17]} {[%emt 00:04:32]} Re7 {[%clk 01:15:49]} {[%emt
00:01:53]} 21. exf5 {[%clk 00:29:23]} {[%emt 00:01:24]} Bxf5 {[%clk 01:16:08]}
{[%emt 00:00:11]} 22. Rxc4 {[%clk 00:29:17]} {[%emt 00:00:37]} c6 {[%clk
01:15:38]} {[%emt 00:01:00]} 23. Na3 {[%clk 00:21:17]} {[%emt 00:08:30]} Rae8
{[%clk 01:14:54]} {[%emt 00:01:13]} 24. Rcd4 {[%clk 00:15:49]} {[%emt
00:05:58]} Re4 {[%clk 01:11:56]} {[%emt 00:03:28]} 25. g4 {[%clk 00:12:08]}
{[%emt 00:04:11]} Rxd4 {[%clk 01:08:42]} {[%emt 00:03:45]} 26. Rxd4 {[%clk
00:12:25]} {[%emt 00:00:13]} Be6 {[%clk 01:09:04]} {[%emt 00:00:07]} 27. Kf2
{[%clk 00:11:32]} {[%emt 00:01:23]} b5 {[%clk 01:08:55]} {[%emt 00:00:40]} 28.
b3 {[%clk 00:10:39]} {[%emt 00:01:22]} a5 {[%clk 01:06:47]} {[%emt 00:02:39]}
29. Nb1 {[%clk 00:10:23]} {[%emt 00:00:45]} c5 {[%clk 01:05:00]} {[%emt
00:02:18]} 30. Rd6 {[%clk 00:09:09]} {[%emt 00:01:44]} c4 {[%clk 01:04:42]}
{[%emt 00:00:48]} 31. Nd2 {[%clk 00:08:32]} {[%emt 00:01:06]} cxb3 {[%clk
01:03:36]} {[%emt 00:01:37]} 32. axb3 {[%clk 00:08:25]} {[%emt 00:00:37]} a4
{[%clk 01:03:34]} {[%emt 00:00:32]} 33. bxa4 {[%clk 00:04:19]} {[%emt
00:04:37]} bxa4 {[%clk 01:03:58]} {[%emt 00:00:05]} 34. Ra6 {[%clk 00:04:34]}
{[%emt 00:00:14]} Bd7 {[%clk 01:04:17]} {[%emt 00:00:11]} 35. Ra7 {[%clk
00:03:48]} {[%emt 00:01:16]} Bc6 {[%clk 01:04:11]} {[%emt 00:00:36]} 36. Nc4
{[%clk 00:03:59]} {[%emt 00:00:19]} Re4 {[%clk 01:04:04]} {[%emt 00:00:37]} 37.
Ne5 {[%clk 00:04:05]} {[%emt 00:00:25]} Be8 {[%clk 01:02:53]} {[%emt 00:01:41]}
38. Kf3 {[%clk 00:04:05]} {[%emt 00:00:30]} Rb4 {[%clk 01:02:35]} {[%emt
00:00:47]} 39. Nd3 {[%clk 00:03:24]} {[%emt 00:01:11]} Bc6+ {[%clk 01:02:40]}
{[%emt 00:00:26]} 40. Ke3 {[%clk 00:03:30]} {[%emt 00:00:24]} Re4+ {[%clk
01:03:06]} {[%emt 00:00:04]} 41. Kd2 {[%clk 00:03:37]} {[%emt 00:00:22]} h6
{[%clk 01:02:47]} {[%emt 00:00:50]} 42. Kc3 {[%clk 00:02:41]} {[%emt 00:01:25]}
Re3 {[%clk 01:02:41]} {[%emt 00:00:36]} 43. h4 {[%clk 00:00:33]} {[%emt
00:02:38]} Rh3 {[%clk 01:03:10]} {[%emt 00:00:02]} 44. h5 {[%clk 00:30:22]}
{[%emt 00:00:40]} Rg3 {[%clk 01:33:01]} {[%emt 00:00:39]} 45. Kb2 {[%clk
00:30:40]} {[%emt 00:00:12]} Rxg4 {[%clk 01:32:49]} {[%emt 00:00:42]} 46. Ne5
{[%clk 00:30:57]} {[%emt 00:00:14]} Bf3 {[%clk 01:31:08]} {[%emt 00:02:11]} 47.
Nxg4 {[%clk 00:30:48]} {[%emt 00:00:38]} Bxg4 {[%clk 01:31:23]} {[%emt
00:00:16]} 48. Ra5 {[%clk 00:31:12]} {[%emt 00:00:06]} Kf7 {[%clk 01:31:18]}
{[%emt 00:00:34]} 49. Ka3 {[%clk 00:31:05]} {[%emt 00:00:37]} Bd1 {[%clk
01:30:58]} {[%emt 00:00:50]} 50. c4 {[%clk 00:31:07]} {[%emt 00:00:28]} g6
{[%clk 01:30:11]} {[%emt 00:01:18]} 51. Ra7+ {[%clk 00:29:15]} {[%emt
00:02:22]} Kg8 {[%clk 01:28:56]} {[%emt 00:01:46]} 52. hxg6 {[%clk 00:28:40]}
{[%emt 00:01:05]} h5 {[%clk 01:29:19]} {[%emt 00:00:07]} 53. Rh7 {[%clk
00:28:24]} {[%emt 00:00:44]} Kf8 {[%clk 01:29:28]} {[%emt 00:00:23]} 54. c5
{[%clk 00:28:41]} {[%emt 00:00:13]} Bf3 {[%clk 01:29:29]} {[%emt 00:00:29]} 55.
Kxa4 {[%clk 00:28:54]} {[%emt 00:00:18]} h4 {[%clk 01:29:20]} {[%emt 00:00:39]}
56. Rxh4 {[%clk 00:29:12]} {[%emt 00:00:11]} Bc6+ {[%clk 01:29:40]} {[%emt
00:00:10]} 57. Ka5 {[%clk 00:29:34]} {[%emt 00:00:10]} Kg7 {[%clk 01:30:03]}
{[%emt 00:00:06]} 58. Kb6 {[%clk 00:29:32]} {[%emt 00:00:32]} Be4 {[%clk
01:30:12]} {[%emt 00:00:21]} 59. Rg4 {[%clk 00:29:31]} {[%emt 00:00:31]} Bf5
{[%clk 01:30:34]} {[%emt 00:00:08]} 60. Rg5 {[%clk 00:29:48]} {[%emt 00:00:12]}
Be4 {[%clk 01:30:16]} {[%emt 00:00:49]} 61. c6 {[%clk 00:30:11]} {[%emt
00:00:07]} Kf6 {[%clk 01:29:05]} {[%emt 00:01:41]} 62. g7 {[%clk 00:30:20]}
{[%emt 00:00:21]} Bd5 {[%clk 01:29:04]} {[%emt 00:00:31]} 63. g8=Q {[%clk
00:30:24]} {[%emt 00:00:25]} Bxg8 {[%clk 01:29:26]} {[%emt 00:00:08]} 64. Rxg8
{[%clk 00:30:49]} {[%emt 00:00:05]} Ke6 {[%clk 01:29:20]} {[%emt 00:00:37]} 65.
c7 {[%clk 00:31:07]} {[%emt 00:00:12]} Ke7 {[%clk 01:29:23]} {[%emt 00:00:26]}
66. c8=Q {[%clk 00:31:19]} {[%emt 00:00:19]} Kf6 {[%clk 01:29:42]} {[%emt
00:00:10]} 67. Qc6 {[%clk 00:31:28]} {[%emt 00:00:21]} Kf5 {[%clk 01:30:00]}
{[%emt 00:00:14]} 68. Rf8+ {[%clk 00:31:43]} {[%emt 00:00:13]} Kg4 {[%clk
01:30:14]} {[%emt 00:00:15]} 69. Qg2+ {[%clk 00:32:05]} {[%emt 00:00:09]} Kh5
{[%clk 01:30:34]} {[%emt 00:00:11]} 70. Rh8+ {[%clk 00:31:54]} {[%emt
00:00:08]} 1-0

[Event "NJSK 2024 AmBm"]
[Site "Groningen, Netherlands"]
[Date "2024.06.02"]
[Round "6.7"]
[White "Ganeshram, Nirupa"]
[Black "Luijkx, Dagmar"]
[Result "1-0"]
[TimeControl "90min/40moves + 30min + 30sec/move"]
[WhiteElo "1696"]
[BlackElo "1701"]

1. e4 {[%clk 01:30:58]} {[%emt 00:00:02]} Nc6 {[%clk 01:30:57]} {[%emt
00:00:04]} 2. d4 {[%clk 01:31:18]} {[%emt 00:00:10]} e5 {[%clk 01:31:23]}
{[%emt 00:00:04]} 3. Nf3 {[%clk 01:30:54]} {[%emt 00:00:54]} exd4 {[%clk
01:31:48]} {[%emt 00:00:05]} 4. Nxd4 {[%clk 01:28:29]} {[%emt 00:02:55]} Qh4
{[%clk 01:32:10]} {[%emt 00:00:07]} 5. Nc3 {[%clk 01:23:39]} {[%emt 00:05:21]}
Bb4 {[%clk 01:32:34]} {[%emt 00:00:06]} 6. Qd3 {[%clk 01:18:51]} {[%emt
00:05:17]} Nf6 {[%clk 01:30:56]} {[%emt 00:02:08]} 7. Nxc6 {[%clk 01:09:38]}
{[%emt 00:09:44]} Bxc3+ {[%clk 01:24:49]} {[%emt 00:06:37]} 8. bxc3 {[%clk
01:06:40]} {[%emt 00:03:27]} dxc6 {[%clk 01:24:20]} {[%emt 00:00:59]} 9. e5
{[%clk 01:04:35]} {[%emt 00:02:36]} Nd5 {[%clk 01:13:21]} {[%emt 00:11:29]} 10.
Be2 {[%clk 01:00:58]} {[%emt 00:04:07]} O-O {[%clk 01:08:05]} {[%emt 00:05:45]}
11. O-O {[%clk 00:56:57]} {[%emt 00:04:32]} g6 {[%clk 00:56:40]} {[%emt
00:11:56]} 12. Qd4 {[%clk 00:51:07]} {[%emt 00:06:19]} Qe7 {[%clk 00:51:54]}
{[%emt 00:05:16]} 13. Bh6 {[%clk 00:44:29]} {[%emt 00:07:08]} Re8 {[%clk
00:49:56]} {[%emt 00:02:27]} 14. f4 {[%clk 00:41:42]} {[%emt 00:03:18]} f6
{[%clk 00:45:40]} {[%emt 00:04:46]} 15. Bc4 {[%clk 00:29:45]} {[%emt 00:12:27]}
Be6 {[%clk 00:43:50]} {[%emt 00:02:19]} 16. Bxd5 {[%clk 00:28:52]} {[%emt
00:01:24]} Bxd5 {[%clk 00:35:15]} {[%emt 00:09:05]} 17. exf6 {[%clk 00:26:20]}
{[%emt 00:03:01]} Qf7 {[%clk 00:33:19]} {[%emt 00:02:24]} 18. Rfe1 {[%clk
00:23:07]} {[%emt 00:03:45]} Rad8 {[%clk 00:26:28]} {[%emt 00:07:21]} 19. Rad1
{[%clk 00:19:27]} {[%emt 00:04:10]} b6 {[%clk 00:23:46]} {[%emt 00:03:12]} 20.
c4 {[%clk 00:17:43]} {[%emt 00:02:14]} Rxe1+ {[%clk 00:18:46]} {[%emt
00:05:31]} 21. Rxe1 {[%clk 00:17:56]} {[%emt 00:00:16]} c5 {[%clk 00:18:36]}
{[%emt 00:00:39]} 22. Qd2 {[%clk 00:15:03]} {[%emt 00:03:23]} Qxf6 {[%clk
00:18:00]} {[%emt 00:01:07]} 23. cxd5 {[%clk 00:14:21]} {[%emt 00:01:12]} c6
{[%clk 00:16:52]} {[%emt 00:01:39]} 24. Bg5 {[%clk 00:14:06]} {[%emt 00:00:44]}
Rxd5 {[%clk 00:16:21]} {[%emt 00:01:00]} 25. Qxd5+ {[%clk 00:14:07]} {[%emt
00:00:29]} cxd5 {[%clk 00:16:29]} {[%emt 00:00:22]} 26. Bxf6 {[%clk 00:14:33]}
{[%emt 00:00:05]} 1-0

[Event "NJSK 2024 AmBm"]
[Site "Groningen, Netherlands"]
[Date "2024.06.02"]
[Round "6.8"]
[White "Liu, Chia-Yun"]
[Black "Hagen, Carlijn"]
[Result "1/2-1/2"]
[TimeControl "90min/40moves + 30min + 30sec/move"]
[WhiteElo "1704"]
[BlackElo "1705"]

1. e4 {[%clk 01:30:55]} {[%emt 00:00:04]} e5 {[%clk 01:30:51]} {[%emt
00:00:10]} 2. Nf3 {[%clk 01:31:01]} {[%emt 00:00:24]} Nc6 {[%clk 01:31:13]}
{[%emt 00:00:08]} 3. d4 {[%clk 01:31:06]} {[%emt 00:00:25]} exd4 {[%clk
01:31:34]} {[%emt 00:00:09]} 4. Bc4 {[%clk 01:31:05]} {[%emt 00:00:30]} Be7
{[%clk 01:30:38]} {[%emt 00:01:27]} 5. Nxd4 {[%clk 01:30:36]} {[%emt 00:00:59]}
Ne5 {[%clk 01:29:40]} {[%emt 00:01:27]} 6. Bb3 {[%clk 01:27:39]} {[%emt
00:03:27]} d6 {[%clk 01:26:37]} {[%emt 00:03:34]} 7. h3 {[%clk 01:24:33]}
{[%emt 00:03:36]} Nf6 {[%clk 01:25:54]} {[%emt 00:01:12]} 8. Nc3 {[%clk
01:22:03]} {[%emt 00:03:00]} h6 {[%clk 01:24:05]} {[%emt 00:02:19]} 9. O-O
{[%clk 01:20:24]} {[%emt 00:02:09]} O-O {[%clk 01:21:59]} {[%emt 00:02:36]} 10.
f4 {[%clk 01:16:44]} {[%emt 00:04:10]} Ng6 {[%clk 01:13:41]} {[%emt 00:08:48]}
11. Kh1 {[%clk 01:12:48]} {[%emt 00:04:26]} Nh7 {[%clk 01:10:17]} {[%emt
00:03:54]} 12. Qf3 {[%clk 01:00:59]} {[%emt 00:12:18]} Re8 {[%clk 01:06:02]}
{[%emt 00:04:46]} 13. Qg3 {[%clk 00:58:07]} {[%emt 00:03:22]} Nhf8 {[%clk
01:04:58]} {[%emt 00:01:33]} 14. f5 {[%clk 00:53:42]} {[%emt 00:04:55]} Bh4
{[%clk 01:02:06]} {[%emt 00:03:22]} 15. Bxf7+ {[%clk 00:50:54]} {[%emt
00:03:19]} Kxf7 {[%clk 01:00:35]} {[%emt 00:02:01]} 16. fxg6+ {[%clk 00:50:44]}
{[%emt 00:00:39]} Kg8 {[%clk 01:00:48]} {[%emt 00:00:17]} 17. Qf3 {[%clk
00:46:18]} {[%emt 00:04:56]} Nxg6 {[%clk 00:56:29]} {[%emt 00:04:50]} 18. Qf7+
{[%clk 00:45:12]} {[%emt 00:01:36]} Kh7 {[%clk 00:56:50]} {[%emt 00:00:09]} 19.
Nf5 {[%clk 00:35:18]} {[%emt 00:10:23]} Bxf5 {[%clk 00:55:38]} {[%emt
00:01:43]} 20. exf5 {[%clk 00:32:50]} {[%emt 00:02:58]} Ne5 {[%clk 00:55:22]}
{[%emt 00:00:46]} 21. Qh5 {[%clk 00:31:08]} {[%emt 00:02:12]} c6 {[%clk
00:42:14]} {[%emt 00:13:39]} 22. Ne2 {[%clk 00:24:26]} {[%emt 00:07:11]} Nf7
{[%clk 00:29:11]} {[%emt 00:13:33]} 23. Nf4 {[%clk 00:20:57]} {[%emt 00:03:59]}
Qf6 {[%clk 00:27:38]} {[%emt 00:02:02]} 24. Qg6+ {[%clk 00:16:21]} {[%emt
00:05:07]} Kg8 {[%clk 00:27:39]} {[%emt 00:00:29]} 25. Qxf6 {[%clk 00:12:19]}
{[%emt 00:04:32]} Bxf6 {[%clk 00:28:08]} {[%emt 00:00:02]} 26. Ne6 {[%clk
00:12:00]} {[%emt 00:00:49]} Rac8 {[%clk 00:27:52]} {[%emt 00:00:46]} 27. c3
{[%clk 00:11:06]} {[%emt 00:01:23]} Nd8 {[%clk 00:25:24]} {[%emt 00:02:58]} 28.
Nxd8 {[%clk 00:09:29]} {[%emt 00:02:07]} Rcxd8 {[%clk 00:24:41]} {[%emt
00:01:13]} 29. Bf4 {[%clk 00:08:56]} {[%emt 00:01:03]} Re2 {[%clk 00:24:25]}
{[%emt 00:00:46]} 30. Rab1 {[%clk 00:08:14]} {[%emt 00:01:12]} d5 {[%clk
00:23:59]} {[%emt 00:00:56]} 31. Rfe1 {[%clk 00:07:02]} {[%emt 00:01:42]} Rde8
{[%clk 00:23:45]} {[%emt 00:00:44]} 32. Bg3 {[%clk 00:06:53]} {[%emt 00:00:39]}
b5 {[%clk 00:23:00]} {[%emt 00:01:16]} 33. Kg1 {[%clk 00:05:47]} {[%emt
00:01:35]} Kf7 {[%clk 00:22:21]} {[%emt 00:01:09]} 34. Kf1 {[%clk 00:05:19]}
{[%emt 00:00:58]} Rc2 {[%clk 00:21:39]} {[%emt 00:01:10]} 35. Rxe8 {[%clk
00:05:12]} {[%emt 00:00:39]} Kxe8 {[%clk 00:22:02]} {[%emt 00:00:07]} 36. Re1+
{[%clk 00:05:35]} {[%emt 00:00:06]} Kd7 {[%clk 00:20:08]} {[%emt 00:02:25]} 37.
Re2 {[%clk 00:05:40]} {[%emt 00:00:25]} Rc1+ {[%clk 00:19:45]} {[%emt
00:00:53]} 38. Re1 {[%clk 00:05:03]} {[%emt 00:01:07]} Rxe1+ {[%clk 00:20:07]}
{[%emt 00:00:08]} 39. Kxe1 {[%clk 00:05:17]} {[%emt 00:00:16]} a5 {[%clk
00:20:16]} {[%emt 00:00:21]} 1/2-1/2

[Event "NJSK 2024 AmBm"]
[Site "Groningen, Netherlands"]
[Date "2024.05.03"]
[Round "7.1"]
[White "Westerhof, Fleur"]
[Black "Tangarife Ramirez, Katja"]
[Result "1/2-1/2"]
[TimeControl "90min/40moves + 30min + 30sec/move"]
[WhiteElo "1916"]
[BlackElo "1742"]

1. e4 {[%clk 01:30:58]} {[%emt 00:00:02]} e5 {[%clk 01:30:58]} {[%emt
00:00:03]} 2. Nf3 {[%clk 01:31:16]} {[%emt 00:00:11]} Nc6 {[%clk 01:31:24]}
{[%emt 00:00:04]} 3. Bc4 {[%clk 01:29:45]} {[%emt 00:02:01]} Bc5 {[%clk
01:31:46]} {[%emt 00:00:08]} 4. c3 {[%clk 01:28:41]} {[%emt 00:01:34]} Bb6
{[%clk 01:24:09]} {[%emt 00:08:07]} 5. d4 {[%clk 01:26:14]} {[%emt 00:02:57]}
exd4 {[%clk 01:22:48]} {[%emt 00:01:51]} 6. cxd4 {[%clk 01:25:28]} {[%emt
00:01:16]} Nge7 {[%clk 01:13:31]} {[%emt 00:09:47]} 7. O-O {[%clk 01:20:24]}
{[%emt 00:05:33]} O-O {[%clk 01:13:29]} {[%emt 00:00:33]} 8. Nc3 {[%clk
01:18:51]} {[%emt 00:02:03]} d6 {[%clk 01:12:43]} {[%emt 00:01:17]} 9. h3
{[%clk 01:17:46]} {[%emt 00:01:33]} h6 {[%clk 01:11:55]} {[%emt 00:01:19]} 10.
Be3 {[%clk 01:15:36]} {[%emt 00:02:40]} Bd7 {[%clk 01:09:12]} {[%emt 00:03:13]}
11. Qd2 {[%clk 01:10:29]} {[%emt 00:05:37]} Kh7 {[%clk 01:06:53]} {[%emt
00:02:48]} 12. d5 {[%clk 01:04:48]} {[%emt 00:06:12]} Ne5 {[%clk 01:01:15]}
{[%emt 00:06:08]} 13. Nxe5 {[%clk 01:03:42]} {[%emt 00:01:36]} dxe5 {[%clk
01:01:39]} {[%emt 00:00:06]} 14. Bxb6 {[%clk 01:02:48]} {[%emt 00:01:23]} axb6
{[%clk 00:53:41]} {[%emt 00:08:29]} 15. d6 {[%clk 01:00:05]} {[%emt 00:03:12]}
1/2-1/2